[Event "Titled Tuesday Blitz July 4 Early 2023"]
[White "Putri, Regita Desyari"]
[Black "Korkmaz, Necmettin"]
[WhiteFideId "7109083"]
[BlackFideId "6303285"]
[WhiteElo "2250"]
[BlackElo "2506"]
[Result "0-1"]
[Round "3"]
[TimeControl "180+2"]
[Date "2023.07.04"]
[WhiteClock "0:00:14"]
[BlackClock "0:02:02"]
[Board "182"]

1. d4 {[%clk 0:02:58]}  d5 {[%clk 0:02:59]} 2. c4 {[%clk 0:02:58]}  c6 {[%clk 0:02:59]} 3. Nf3 {[%clk 0:02:59]}  Nf6 {[%clk 0:03:00]} 4. Nc3 {[%clk 0:02:58]}  e6 {[%clk 0:03:00]} 5. cxd5 {[%clk 0:02:56]}  exd5 {[%clk 0:02:59]} 6. Bg5 {[%clk 0:02:57]}  Bb4 {[%clk 0:02:58]} 7. e3 {[%clk 0:02:54]}  O-O {[%clk 0:02:58]} 8. Bd3 {[%clk 0:02:53]}  Re8 {[%clk 0:02:56]} 9. O-O {[%clk 0:02:53]}  Bxc3 {[%clk 0:02:57]} 10. bxc3 {[%clk 0:02:53]}  Bg4 {[%clk 0:02:57]} 11. h3 {[%clk 0:02:35]}  Bh5 {[%clk 0:02:57]} 12. Be2 {[%clk 0:02:24]}  Nbd7 {[%clk 0:02:56]} 13. Rb1 {[%clk 0:02:15]}  b5 {[%clk 0:02:54]} 14. a4 {[%clk 0:02:13]}  a6 {[%clk 0:02:54]} 15. axb5 {[%clk 0:02:11]}  axb5 {[%clk 0:02:55]} 16. Bxf6 {[%clk 0:02:09]}  Nxf6 {[%clk 0:02:54]} 17. Ne5 {[%clk 0:02:09]}  Bxe2 {[%clk 0:02:53]} 18. Qxe2 {[%clk 0:02:10]}  Qc7 {[%clk 0:02:53]} 19. Ra1 {[%clk 0:01:53]}  Ne4 {[%clk 0:02:53]} 20. Qb2 {[%clk 0:01:46]}  Nd6 {[%clk 0:02:46]} 21. Qb4 {[%clk 0:01:38]}  f6 {[%clk 0:02:43]} 22. Nd3 {[%clk 0:01:35]}  Reb8 {[%clk 0:02:38]} 23. Nc5 {[%clk 0:01:34]}  Qc8 {[%clk 0:02:32]} 24. Na6 {[%clk 0:01:08]}  Rb6 {[%clk 0:02:29]} 25. Qxd6 {[%clk 0:00:49]}  Rbxa6 {[%clk 0:02:28]} 26. Rxa6 {[%clk 0:00:49]}  Rxa6 {[%clk 0:02:29]} 27. Re1 {[%clk 0:00:47]}  Qa8 {[%clk 0:02:21]} 28. Kh2 {[%clk 0:00:37]}  Ra2 {[%clk 0:02:05]} 29. Kg3 {[%clk 0:00:37]}  Qe8 {[%clk 0:02:02]} 30. f3 {[%clk 0:00:14]}  Qg6+ {[%clk 0:02:02]} 0-1


[Site "https://www.chess.com"]

[Event "Titled Tuesday Blitz July 4 Early 2023"]
[White "Andreassen, Lars"]
[Black "Devaev, Alexander"]
[WhiteFideId "1504878"]
[BlackFideId "4169395"]
[WhiteElo "2226"]
[BlackElo "2495"]
[Result "1-0"]
[Round "3"]
[TimeControl "180+2"]
[Date "2023.07.04"]
[WhiteClock "0:00:28"]
[BlackClock "0:00:00"]
[Board "183"]

1. d4 {[%clk 0:03:00]}  Nf6 {[%clk 0:02:54]} 2. Nf3 {[%clk 0:03:01]}  e6 {[%clk 0:02:54]} 3. Bg5 {[%clk 0:03:00]}  c5 {[%clk 0:02:54]} 4. e3 {[%clk 0:02:58]}  Qb6 {[%clk 0:02:54]} 5. Nbd2 {[%clk 0:02:54]}  Qxb2 {[%clk 0:02:31]} 6. Bd3 {[%clk 0:02:51]}  cxd4 {[%clk 0:02:23]} 7. exd4 {[%clk 0:02:51]}  Qb6 {[%clk 0:02:22]} 8. O-O {[%clk 0:02:45]}  Be7 {[%clk 0:02:22]} 9. c4 {[%clk 0:02:36]}  O-O {[%clk 0:02:17]} 10. Rb1 {[%clk 0:02:33]}  Qc7 {[%clk 0:02:12]} 11. Re1 {[%clk 0:02:32]}  d6 {[%clk 0:02:12]} 12. Ne4 {[%clk 0:02:27]}  Nbd7 {[%clk 0:02:06]} 13. Qe2 {[%clk 0:02:19]}  Re8 {[%clk 0:02:04]} 14. Rbc1 {[%clk 0:02:16]}  Nxe4 {[%clk 0:01:54]} 15. Qxe4 {[%clk 0:02:15]}  Nf8 {[%clk 0:01:55]} 16. Bd2 {[%clk 0:02:01]}  Bd7 {[%clk 0:01:50]} 17. h4 {[%clk 0:01:58]}  Bc6 {[%clk 0:01:37]} 18. d5 {[%clk 0:01:56]}  Bd7 {[%clk 0:01:37]} 19. Ng5 {[%clk 0:01:46]}  Bxg5 {[%clk 0:01:36]} 20. hxg5 {[%clk 0:01:42]}  exd5 {[%clk 0:01:35]} 21. Qxd5 {[%clk 0:01:41]}  Bc6 {[%clk 0:01:30]} 22. Qf5 {[%clk 0:01:33]}  Ng6 {[%clk 0:01:20]} 23. g3 {[%clk 0:01:22]}  Rxe1+ {[%clk 0:00:38]} 24. Rxe1 {[%clk 0:01:21]}  Re8 {[%clk 0:00:39]} 25. Rxe8+ {[%clk 0:01:17]}  Bxe8 {[%clk 0:00:39]} 26. f4 {[%clk 0:01:08]}  Bc6 {[%clk 0:00:34]} 27. Kf2 {[%clk 0:00:59]}  Qb6+ {[%clk 0:00:32]} 28. Be3 {[%clk 0:00:57]}  Qb2+ {[%clk 0:00:32]} 29. Be2 {[%clk 0:00:54]}  a6 {[%clk 0:00:24]} 30. Qc8+ {[%clk 0:00:45]}  Nf8 {[%clk 0:00:24]} 31. Qc7 {[%clk 0:00:42]}  Qxa2 {[%clk 0:00:23]} 32. Qxd6 {[%clk 0:00:42]}  Ne6 {[%clk 0:00:06]} 33. Qb8+ {[%clk 0:00:38]}  Nf8 {[%clk 0:00:07]} 34. Bc5 {[%clk 0:00:35]}  h6 {[%clk 0:00:07]} 35. Qxf8+ {[%clk 0:00:33]}  Kh7 {[%clk 0:00:07]} 36. Qxf7 {[%clk 0:00:33]}  Qc2 {[%clk 0:00:07]} 37. f5 {[%clk 0:00:28]}  hxg5 {[%clk 0:00:05]} 38. Qg6+ {[%clk 0:00:28]}  Kh8 {[%clk 0:00:00]} 39. Bd4 {[%clk 0:00:28]} 1-0


[Site "https://www.chess.com"]

[Event "Titled Tuesday Blitz July 4 Early 2023"]
[White "Marin Masis, Jose Esteban"]
[Black "Heinemann, Josefine"]
[WhiteFideId "6508146"]
[BlackFideId "12900460"]
[WhiteElo "2112"]
[BlackElo "2455"]
[Result "0-1"]
[Round "3"]
[TimeControl "180+2"]
[Date "2023.07.04"]
[WhiteClock "0:00:13"]
[BlackClock "0:00:12"]
[Board "185"]

1. e4 {[%clk 0:03:00]}  c6 {[%clk 0:02:57]} 2. d4 {[%clk 0:02:57]}  d5 {[%clk 0:02:54]} 3. exd5 {[%clk 0:02:56]}  cxd5 {[%clk 0:02:54]} 4. c4 {[%clk 0:02:57]}  Nf6 {[%clk 0:02:52]} 5. Nf3 {[%clk 0:02:57]}  Nc6 {[%clk 0:02:52]} 6. Nc3 {[%clk 0:02:56]}  Bg4 {[%clk 0:02:48]} 7. Be2 {[%clk 0:02:56]}  dxc4 {[%clk 0:02:47]} 8. O-O {[%clk 0:02:49]}  e6 {[%clk 0:02:46]} 9. Bxc4 {[%clk 0:02:48]}  Bxf3 {[%clk 0:02:44]} 10. Qxf3 {[%clk 0:02:47]}  Qxd4 {[%clk 0:02:44]} 11. Bb5 {[%clk 0:02:43]}  Qb6 {[%clk 0:02:44]} 12. Be3 {[%clk 0:02:32]}  Qc7 {[%clk 0:02:42]} 13. Rac1 {[%clk 0:02:25]}  Be7 {[%clk 0:02:33]} 14. Bf4 {[%clk 0:01:52]}  Qc8 {[%clk 0:02:19]} 15. Bxc6+ {[%clk 0:01:44]}  Qxc6 {[%clk 0:02:18]} 16. Qxc6+ {[%clk 0:01:40]}  bxc6 {[%clk 0:02:19]} 17. Na4 {[%clk 0:01:40]}  Rc8 {[%clk 0:02:17]} 18. Be3 {[%clk 0:01:38]}  O-O {[%clk 0:02:12]} 19. b3 {[%clk 0:01:35]}  a6 {[%clk 0:01:59]} 20. Nb6 {[%clk 0:01:29]}  Rc7 {[%clk 0:01:53]} 21. Bf4 {[%clk 0:01:24]}  Rb7 {[%clk 0:01:50]} 22. Rxc6 {[%clk 0:01:21]}  h6 {[%clk 0:01:36]} 23. Na4 {[%clk 0:01:09]}  Nd5 {[%clk 0:01:34]} 24. Bd6 {[%clk 0:01:00]}  Bxd6 {[%clk 0:01:27]} 25. Rxd6 {[%clk 0:01:01]}  a5 {[%clk 0:01:27]} 26. Ra6 {[%clk 0:00:52]}  Rb5 {[%clk 0:01:22]} 27. h3 {[%clk 0:00:47]}  Nb4 {[%clk 0:01:21]} 28. Nc3 {[%clk 0:00:46]}  Re5 {[%clk 0:01:14]} 29. Ra7 {[%clk 0:00:37]}  Rc8 {[%clk 0:01:13]} 30. Na4 {[%clk 0:00:33]}  Nxa2 {[%clk 0:01:08]} 31. Nb6 {[%clk 0:00:34]}  Rd8 {[%clk 0:00:53]} 32. Nc4 {[%clk 0:00:32]}  Rb5 {[%clk 0:00:53]} 33. Rxa5 {[%clk 0:00:30]}  Rxa5 {[%clk 0:00:53]} 34. Nxa5 {[%clk 0:00:31]}  Rb8 {[%clk 0:00:52]} 35. Ra1 {[%clk 0:00:30]}  Nc3 {[%clk 0:00:52]} 36. Rc1 {[%clk 0:00:28]}  Nd5 {[%clk 0:00:52]} 37. Rb1 {[%clk 0:00:25]}  Nc3 {[%clk 0:00:51]} 38. Rb2 {[%clk 0:00:25]}  e5 {[%clk 0:00:48]} 39. b4 {[%clk 0:00:25]}  e4 {[%clk 0:00:43]} 40. Nc6 {[%clk 0:00:25]}  Rb6 {[%clk 0:00:42]} 41. Nd4 {[%clk 0:00:22]}  Rd6 {[%clk 0:00:42]} 42. Nf5 {[%clk 0:00:20]}  Rd1+ {[%clk 0:00:42]} 43. Kh2 {[%clk 0:00:20]}  Nb5 {[%clk 0:00:40]} 44. Ne3 {[%clk 0:00:19]}  Rd3 {[%clk 0:00:35]} 45. Ng4 {[%clk 0:00:15]}  h5 {[%clk 0:00:32]} 46. Ne3 {[%clk 0:00:15]}  g6 {[%clk 0:00:32]} 47. Kg1 {[%clk 0:00:16]}  f5 {[%clk 0:00:32]} 48. Kh2 {[%clk 0:00:16]}  f4 {[%clk 0:00:32]} 49. Nc4 {[%clk 0:00:16]}  Kg7 {[%clk 0:00:27]} 50. Ne5 {[%clk 0:00:17]}  Rd1 {[%clk 0:00:26]} 51. Nc4 {[%clk 0:00:16]}  Kf6 {[%clk 0:00:25]} 52. Nd2 {[%clk 0:00:16]}  Kf5 {[%clk 0:00:24]} 53. Nc4 {[%clk 0:00:15]}  g5 {[%clk 0:00:22]} 54. Na5 {[%clk 0:00:13]}  g4 {[%clk 0:00:22]} 55. hxg4+ {[%clk 0:00:13]}  hxg4 {[%clk 0:00:22]} 56. Rc2 {[%clk 0:00:13]}  Nd4 {[%clk 0:00:21]} 57. Rc5+ {[%clk 0:00:13]}  Kf6 {[%clk 0:00:20]} 58. b5 {[%clk 0:00:14]}  Ne2 {[%clk 0:00:21]} 59. b6 {[%clk 0:00:14]}  Rb1 {[%clk 0:00:11]} 60. b7 {[%clk 0:00:14]}  g3+ {[%clk 0:00:12]} 61. fxg3 {[%clk 0:00:13]}  Nxg3 {[%clk 0:00:13]} 62. Rc6+ {[%clk 0:00:12]}  Kg5 {[%clk 0:00:12]} 63. Rc8 {[%clk 0:00:13]}  Rh1# {[%clk 0:00:12]} 0-1


[Site "https://www.chess.com"]

[Event "Titled Tuesday Blitz July 4 Early 2023"]
[White "campochess"]
[Black "Mikhailovsky, Vladimir"]
[BlackFideId "34105414"]
[WhiteElo "2133"]
[BlackElo "2808"]
[Result "0-1"]
[Round "3"]
[TimeControl "180+2"]
[Date "2023.07.04"]
[WhiteClock "0:01:17"]
[BlackClock "0:00:08"]
[Board "187"]

1. d4 {[%clk 0:03:00]}  d5 {[%clk 0:02:53]} 2. Bg5 {[%clk 0:03:00]}  c5 {[%clk 0:02:50]} 3. dxc5 {[%clk 0:02:59]}  Nf6 {[%clk 0:02:47]} 4. Nf3 {[%clk 0:02:57]}  Nc6 {[%clk 0:02:35]} 5. g3 {[%clk 0:02:56]}  e5 {[%clk 0:02:36]} 6. Bxf6 {[%clk 0:02:54]}  gxf6 {[%clk 0:02:36]} 7. Bg2 {[%clk 0:02:53]}  Bxc5 {[%clk 0:02:36]} 8. O-O {[%clk 0:02:53]}  Be6 {[%clk 0:02:37]} 9. Nbd2 {[%clk 0:02:52]}  Qe7 {[%clk 0:02:29]} 10. Nb3 {[%clk 0:02:52]}  Bb6 {[%clk 0:02:30]} 11. Nfd2 {[%clk 0:02:50]}  O-O-O {[%clk 0:02:29]} 12. Qc1 {[%clk 0:02:49]}  h5 {[%clk 0:02:27]} 13. c4 {[%clk 0:02:49]}  h4 {[%clk 0:02:26]} 14. cxd5 {[%clk 0:02:48]}  Bxd5 {[%clk 0:02:26]} 15. e4 {[%clk 0:02:41]}  Be6 {[%clk 0:02:24]} 16. Nc4 {[%clk 0:02:34]}  hxg3 {[%clk 0:02:03]} 17. Nxb6+ {[%clk 0:02:33]}  axb6 {[%clk 0:02:03]} 18. hxg3 {[%clk 0:02:29]}  Kb8 {[%clk 0:02:01]} 19. Qe3 {[%clk 0:02:21]}  Ka7 {[%clk 0:01:36]} 20. Rfd1 {[%clk 0:02:19]}  Qf8 {[%clk 0:01:10]} 21. a4 {[%clk 0:02:15]}  Qb4 {[%clk 0:01:03]} 22. Rxd8 {[%clk 0:02:00]}  Rxd8 {[%clk 0:01:01]} 23. Ra3 {[%clk 0:02:00]}  Rd1+ {[%clk 0:00:59]} 24. Kh2 {[%clk 0:01:59]}  Qf8 {[%clk 0:00:58]} 25. g4 {[%clk 0:01:53]}  Nd4 {[%clk 0:00:15]} 26. a5 {[%clk 0:01:40]}  Bxb3 {[%clk 0:00:11]} 27. axb6+ {[%clk 0:01:37]}  Kb8 {[%clk 0:00:11]} 28. Qc3 {[%clk 0:01:27]}  Qh6+ {[%clk 0:00:08]} 29. Kg3 {[%clk 0:01:17]}  Ne2+ {[%clk 0:00:08]} 0-1


[Site "https://www.chess.com"]

[Event "Titled Tuesday Blitz July 4 Early 2023"]
[White "Rozhkov, Viacheslav"]
[Black "realmadridfc123"]
[WhiteFideId "4181484"]
[WhiteElo "2321"]
[BlackElo "2752"]
[Result "0-1"]
[Round "3"]
[TimeControl "180+2"]
[Date "2023.07.04"]
[WhiteClock "0:00:00"]
[BlackClock "0:00:25"]
[Board "189"]

1. e4 {[%clk 0:03:00]}  c6 {[%clk 0:02:59]} 2. d3 {[%clk 0:03:00]}  d5 {[%clk 0:02:59]} 3. Nd2 {[%clk 0:03:01]}  Nd7 {[%clk 0:02:58]} 4. Ngf3 {[%clk 0:03:00]}  e5 {[%clk 0:02:58]} 5. d4 {[%clk 0:03:00]}  exd4 {[%clk 0:02:55]} 6. exd5 {[%clk 0:02:54]}  cxd5 {[%clk 0:02:51]} 7. Nxd4 {[%clk 0:02:50]}  Ngf6 {[%clk 0:02:52]} 8. Nf5 {[%clk 0:02:38]}  Ne5 {[%clk 0:02:47]} 9. Bb5+ {[%clk 0:02:35]}  Bd7 {[%clk 0:02:47]} 10. Qe2 {[%clk 0:02:27]}  Qc7 {[%clk 0:02:28]} 11. O-O {[%clk 0:02:12]}  Bc5 {[%clk 0:02:17]} 12. Bxd7+ {[%clk 0:01:51]}  Nxd7 {[%clk 0:02:15]} 13. Nxg7+ {[%clk 0:01:49]}  Kf8 {[%clk 0:02:11]} 14. Nf5 {[%clk 0:01:47]}  Rg8 {[%clk 0:02:10]} 15. Nf3 {[%clk 0:01:46]}  Rg6 {[%clk 0:02:09]} 16. Bf4 {[%clk 0:01:38]}  Re8 {[%clk 0:01:47]} 17. Rae1 {[%clk 0:01:30]}  f6 {[%clk 0:01:29]} 18. Nxe5 {[%clk 0:01:27]}  fxe5 {[%clk 0:01:27]} 19. Bg3 {[%clk 0:01:13]}  Qc6 {[%clk 0:01:18]} 20. Qh5 {[%clk 0:01:09]}  Qf6 {[%clk 0:01:16]} 21. Ne3 {[%clk 0:00:52]}  Qf7 {[%clk 0:01:12]} 22. Ng4 {[%clk 0:00:38]}  e4 {[%clk 0:01:12]} 23. c3 {[%clk 0:00:30]}  Qg7 {[%clk 0:00:54]} 24. Ne3 {[%clk 0:00:26]}  Nf6 {[%clk 0:00:54]} 25. Qf5 {[%clk 0:00:24]}  Rg5 {[%clk 0:00:55]} 26. Qf4 {[%clk 0:00:21]}  Kg8 {[%clk 0:00:54]} 27. b4 {[%clk 0:00:17]}  Nh5 {[%clk 0:00:52]} 28. Qc7 {[%clk 0:00:15]}  Nxg3 {[%clk 0:00:51]} 29. Qxg7+ {[%clk 0:00:15]}  Kxg7 {[%clk 0:00:51]} 30. hxg3 {[%clk 0:00:15]}  Be7 {[%clk 0:00:45]} 31. Rd1 {[%clk 0:00:14]}  Rd8 {[%clk 0:00:46]} 32. Rd2 {[%clk 0:00:13]}  Bf6 {[%clk 0:00:46]} 33. Rc1 {[%clk 0:00:09]}  Kf7 {[%clk 0:00:44]} 34. Kf1 {[%clk 0:00:09]}  Ke6 {[%clk 0:00:42]} 35. Ke2 {[%clk 0:00:10]}  Rc8 {[%clk 0:00:43]} 36. c4 {[%clk 0:00:05]}  d4 {[%clk 0:00:43]} 37. Nd5 {[%clk 0:00:06]}  Bg7 {[%clk 0:00:41]} 38. Re1 {[%clk 0:00:05]}  Rxc4 {[%clk 0:00:38]} 39. Nf4+ {[%clk 0:00:04]}  Kf7 {[%clk 0:00:36]} 40. Kf1 {[%clk 0:00:05]}  d3 {[%clk 0:00:31]} 41. a3 {[%clk 0:00:04]}  a5 {[%clk 0:00:24]} 42. bxa5 {[%clk 0:00:02]}  Rxa5 {[%clk 0:00:25]} 43. Re3 {[%clk 0:00:01]}  Rc1+ {[%clk 0:00:24]} 44. Re1 {[%clk 0:00:01]}  Rxe1+ {[%clk 0:00:25]} 45. Kxe1 {[%clk 0:00:02]}  Bc3 {[%clk 0:00:26]} 46. Kd1 {[%clk 0:00:00]}  Rxa3 {[%clk 0:00:25]} 0-1


[Site "https://www.chess.com"]

[Event "Titled Tuesday Blitz July 4 Early 2023"]
[White "Shapiro, Daniel"]
[Black "Cugimura97"]
[WhiteFideId "2001780"]
[WhiteElo "2320"]
[BlackElo "2686"]
[Result "0-1"]
[Round "3"]
[TimeControl "180+2"]
[Date "2023.07.04"]
[WhiteClock "0:00:06"]
[BlackClock "0:01:39"]
[Board "190"]

1. d4 {[%clk 0:03:00]}  Nf6 {[%clk 0:02:55]} 2. c4 {[%clk 0:03:00]}  g6 {[%clk 0:02:53]} 3. Nc3 {[%clk 0:03:00]}  Bg7 {[%clk 0:02:52]} 4. e4 {[%clk 0:02:59]}  d6 {[%clk 0:02:52]} 5. Be2 {[%clk 0:03:00]}  O-O {[%clk 0:02:50]} 6. Nf3 {[%clk 0:03:00]}  Nc6 {[%clk 0:02:49]} 7. O-O {[%clk 0:02:58]}  e5 {[%clk 0:02:49]} 8. d5 {[%clk 0:02:59]}  Ne7 {[%clk 0:02:47]} 9. a4 {[%clk 0:02:59]}  a5 {[%clk 0:02:44]} 10. Ne1 {[%clk 0:02:56]}  Nd7 {[%clk 0:02:41]} 11. b3 {[%clk 0:02:54]}  f5 {[%clk 0:02:40]} 12. f3 {[%clk 0:02:53]}  h6 {[%clk 0:02:37]} 13. Nd3 {[%clk 0:02:53]}  b6 {[%clk 0:02:37]} 14. Ba3 {[%clk 0:02:52]}  Kh7 {[%clk 0:02:32]} 15. b4 {[%clk 0:02:51]}  axb4 {[%clk 0:02:32]} 16. Bxb4 {[%clk 0:02:52]}  h5 {[%clk 0:02:26]} 17. a5 {[%clk 0:02:47]}  Ba6 {[%clk 0:02:25]} 18. Nb5 {[%clk 0:02:34]}  Bh6 {[%clk 0:02:21]} 19. Bd2 {[%clk 0:02:30]}  Bxb5 {[%clk 0:02:13]} 20. cxb5 {[%clk 0:02:27]}  fxe4 {[%clk 0:02:12]} 21. fxe4 {[%clk 0:02:25]}  Rxf1+ {[%clk 0:02:12]} 22. Bxf1 {[%clk 0:02:25]}  bxa5 {[%clk 0:02:08]} 23. Bxh6 {[%clk 0:02:23]}  Kxh6 {[%clk 0:02:06]} 24. Qd2+ {[%clk 0:02:24]}  Kg7 {[%clk 0:02:04]} 25. Rxa5 {[%clk 0:02:24]}  Rxa5 {[%clk 0:01:54]} 26. Qxa5 {[%clk 0:02:24]}  Qb8 {[%clk 0:01:53]} 27. Nb4 {[%clk 0:01:58]}  Nf6 {[%clk 0:01:51]} 28. Bd3 {[%clk 0:01:53]}  Kf7 {[%clk 0:01:50]} 29. Na6 {[%clk 0:01:12]}  Qa7+ {[%clk 0:01:46]} 30. Kf1 {[%clk 0:01:04]}  Qe3 {[%clk 0:01:44]} 31. Qc3 {[%clk 0:00:06]}  Ng4 {[%clk 0:01:39]} 0-1


[Site "https://www.chess.com"]

[Event "Titled Tuesday Blitz July 4 Early 2023"]
[White "Lopez Del Alamo, Antonio"]
[Black "Kononenko, Dmitry"]
[WhiteFideId "2227339"]
[BlackFideId "14113538"]
[WhiteElo "2313"]
[BlackElo "2605"]
[Result "0-1"]
[Round "3"]
[TimeControl "180+2"]
[Date "2023.07.04"]
[WhiteClock "0:00:58"]
[BlackClock "0:01:34"]
[Board "192"]

1. e4 {[%clk 0:02:59]}  d5 {[%clk 0:02:58]} 2. exd5 {[%clk 0:02:58]}  Qxd5 {[%clk 0:02:59]} 3. Nc3 {[%clk 0:02:58]}  Qa5 {[%clk 0:03:00]} 4. d4 {[%clk 0:02:58]}  Nf6 {[%clk 0:03:00]} 5. Nf3 {[%clk 0:02:58]}  Bg4 {[%clk 0:03:00]} 6. h3 {[%clk 0:02:58]}  Bh5 {[%clk 0:03:01]} 7. g4 {[%clk 0:02:58]}  Bg6 {[%clk 0:03:01]} 8. b4 {[%clk 0:02:57]}  Qxb4 {[%clk 0:02:57]} 9. Bd2 {[%clk 0:02:57]}  Qd6 {[%clk 0:02:56]} 10. Rb1 {[%clk 0:02:48]}  b6 {[%clk 0:02:55]} 11. Nb5 {[%clk 0:02:46]}  Qd8 {[%clk 0:02:51]} 12. Ne5 {[%clk 0:02:32]}  Be4 {[%clk 0:02:45]} 13. f3 {[%clk 0:02:31]}  Bb7 {[%clk 0:02:43]} 14. c4 {[%clk 0:02:27]}  e6 {[%clk 0:02:42]} 15. Bf4 {[%clk 0:02:24]}  Bd6 {[%clk 0:02:40]} 16. Nxd6+ {[%clk 0:02:18]}  cxd6 {[%clk 0:02:39]} 17. Nd3 {[%clk 0:02:17]}  O-O {[%clk 0:02:37]} 18. Be2 {[%clk 0:02:10]}  Qe7 {[%clk 0:02:25]} 19. h4 {[%clk 0:01:59]}  Nc6 {[%clk 0:02:23]} 20. Nf2 {[%clk 0:01:55]}  e5 {[%clk 0:02:18]} 21. dxe5 {[%clk 0:01:53]}  dxe5 {[%clk 0:02:17]} 22. Be3 {[%clk 0:01:50]}  Rfd8 {[%clk 0:02:09]} 23. Qc1 {[%clk 0:01:40]}  Nd4 {[%clk 0:02:08]} 24. Bxd4 {[%clk 0:01:36]}  exd4 {[%clk 0:02:06]} 25. Kf1 {[%clk 0:01:23]}  d3 {[%clk 0:02:02]} 26. Bd1 {[%clk 0:01:20]}  d2 {[%clk 0:01:59]} 27. Qc3 {[%clk 0:01:17]}  Rac8 {[%clk 0:01:50]} 28. h5 {[%clk 0:01:15]}  Nd5 {[%clk 0:01:39]} 29. Qb2 {[%clk 0:01:04]}  Nf4 {[%clk 0:01:36]} 30. h6 {[%clk 0:00:58]}  Qe1# {[%clk 0:01:34]} 0-1


[Site "https://www.chess.com"]

[Event "Titled Tuesday Blitz July 4 Early 2023"]
[White "Coelho, Ramyres Santana"]
[Black "Sadykov, Ramil"]
[WhiteFideId "2120690"]
[BlackFideId "24113590"]
[WhiteElo "2311"]
[BlackElo "2605"]
[Result "0-1"]
[Round "3"]
[TimeControl "180+2"]
[Date "2023.07.04"]
[WhiteClock "0:00:01"]
[BlackClock "0:01:19"]
[Board "193"]

1. e4 {[%clk 0:03:00]}  c5 {[%clk 0:03:00]} 2. Nf3 {[%clk 0:02:56]}  Nc6 {[%clk 0:02:59]} 3. d4 {[%clk 0:02:56]}  cxd4 {[%clk 0:03:00]} 4. c3 {[%clk 0:02:55]}  dxc3 {[%clk 0:02:55]} 5. Nxc3 {[%clk 0:02:55]}  e6 {[%clk 0:02:56]} 6. Bc4 {[%clk 0:02:55]}  Bb4 {[%clk 0:02:56]} 7. O-O {[%clk 0:02:55]}  Nge7 {[%clk 0:02:55]} 8. a3 {[%clk 0:02:55]}  Bxc3 {[%clk 0:02:54]} 9. bxc3 {[%clk 0:02:56]}  d5 {[%clk 0:02:49]} 10. exd5 {[%clk 0:02:56]}  exd5 {[%clk 0:02:47]} 11. Bd3 {[%clk 0:02:54]}  O-O {[%clk 0:02:30]} 12. Ng5 {[%clk 0:02:44]}  Bf5 {[%clk 0:02:27]} 13. Bxf5 {[%clk 0:02:34]}  Nxf5 {[%clk 0:02:28]} 14. Qh5 {[%clk 0:02:34]}  h6 {[%clk 0:02:27]} 15. Nh3 {[%clk 0:02:21]}  Qf6 {[%clk 0:02:25]} 16. Bd2 {[%clk 0:02:09]}  Ne5 {[%clk 0:02:17]} 17. f4 {[%clk 0:02:06]}  Nc4 {[%clk 0:02:16]} 18. Be1 {[%clk 0:01:58]}  Nfe3 {[%clk 0:02:06]} 19. Rf3 {[%clk 0:01:53]}  Rfe8 {[%clk 0:01:53]} 20. g4 {[%clk 0:01:37]}  Nc2 {[%clk 0:01:45]} 21. g5 {[%clk 0:01:03]}  Qg6 {[%clk 0:01:43]} 22. Qxg6 {[%clk 0:01:03]}  fxg6 {[%clk 0:01:44]} 23. Rd1 {[%clk 0:00:50]}  Rxe1+ {[%clk 0:01:44]} 24. Rxe1 {[%clk 0:00:50]}  Nxe1 {[%clk 0:01:45]} 25. Rf1 {[%clk 0:00:48]}  Nc2 {[%clk 0:01:43]} 26. gxh6 {[%clk 0:00:46]}  gxh6 {[%clk 0:01:44]} 27. f5 {[%clk 0:00:46]}  g5 {[%clk 0:01:39]} 28. Nf2 {[%clk 0:00:44]}  N4e3 {[%clk 0:01:38]} 29. Rc1 {[%clk 0:00:44]}  Rc8 {[%clk 0:01:38]} 30. Nd3 {[%clk 0:00:37]}  Rxc3 {[%clk 0:01:37]} 31. Ne5 {[%clk 0:00:35]}  d4 {[%clk 0:01:33]} 32. f6 {[%clk 0:00:34]}  d3 {[%clk 0:01:32]} 33. f7+ {[%clk 0:00:17]}  Kg7 {[%clk 0:01:32]} 34. Rb1 {[%clk 0:00:05]}  b6 {[%clk 0:01:25]} 35. h4 {[%clk 0:00:02]}  d2 {[%clk 0:01:25]} 36. hxg5 {[%clk 0:00:02]}  hxg5 {[%clk 0:01:25]} 37. Rf1 {[%clk 0:00:01]}  Nxf1 {[%clk 0:01:25]} 38. f8=Q+ {[%clk 0:00:02]}  Kxf8 {[%clk 0:01:25]} 39. Ng6+ {[%clk 0:00:02]}  Kg7 {[%clk 0:01:26]} 40. Ne5 {[%clk 0:00:02]}  d1=Q {[%clk 0:01:23]} 41. Nf3 {[%clk 0:00:03]}  Nd2+ {[%clk 0:01:18]} 42. Kg2 {[%clk 0:00:02]}  Qxf3+ {[%clk 0:01:18]} 43. Kh2 {[%clk 0:00:02]}  Qg3+ {[%clk 0:01:17]} 44. Kh1 {[%clk 0:00:01]}  Qh3+ {[%clk 0:01:18]} 45. Kg1 {[%clk 0:00:01]}  Rg3+ {[%clk 0:01:18]} 46. Kf2 {[%clk 0:00:01]}  Rg2# {[%clk 0:01:19]} 0-1


[Site "https://www.chess.com"]

[Event "Titled Tuesday Blitz July 4 Early 2023"]
[White "WindWhistler11"]
[Black "Sokolov, Andrei"]
[BlackFideId "11600306"]
[WhiteElo "2539"]
[BlackElo "2304"]
[Result "1-0"]
[Round "3"]
[TimeControl "180+2"]
[Date "2023.07.04"]
[WhiteClock "0:00:51"]
[BlackClock "0:00:00"]
[Board "195"]

1. Nf3 {[%clk 0:03:00]}  d5 {[%clk 0:02:59]} 2. g3 {[%clk 0:03:00]}  Nf6 {[%clk 0:02:55]} 3. c4 {[%clk 0:03:01]}  c6 {[%clk 0:02:51]} 4. Bg2 {[%clk 0:03:01]}  Bf5 {[%clk 0:02:52]} 5. O-O {[%clk 0:03:00]}  e6 {[%clk 0:02:52]} 6. b3 {[%clk 0:03:00]}  Bd6 {[%clk 0:02:51]} 7. Bb2 {[%clk 0:03:00]}  O-O {[%clk 0:02:52]} 8. d3 {[%clk 0:02:58]}  Nbd7 {[%clk 0:02:49]} 9. Nbd2 {[%clk 0:02:56]}  Bg6 {[%clk 0:02:45]} 10. Qc2 {[%clk 0:02:52]}  Rc8 {[%clk 0:02:31]} 11. Nh4 {[%clk 0:02:52]}  e5 {[%clk 0:02:24]} 12. e4 {[%clk 0:02:35]}  d4 {[%clk 0:02:03]} 13. h3 {[%clk 0:02:27]}  Nh5 {[%clk 0:01:56]} 14. Nf5 {[%clk 0:02:04]}  Bc7 {[%clk 0:01:32]} 15. Ba3 {[%clk 0:01:58]}  Re8 {[%clk 0:01:28]} 16. b4 {[%clk 0:01:43]}  Qg5 {[%clk 0:01:20]} 17. Nf3 {[%clk 0:01:40]}  Qf6 {[%clk 0:01:15]} 18. N5h4 {[%clk 0:01:37]}  Qe6 {[%clk 0:00:58]} 19. Ng5 {[%clk 0:01:24]}  Qe7 {[%clk 0:00:51]} 20. Ngf3 {[%clk 0:01:20]}  Rf8 {[%clk 0:00:40]} 21. Qa4 {[%clk 0:01:13]}  Bd8 {[%clk 0:00:15]} 22. Qxa7 {[%clk 0:01:08]}  Qe6 {[%clk 0:00:12]} 23. b5 {[%clk 0:00:58]}  c5 {[%clk 0:00:11]} 24. Qxb7 {[%clk 0:00:57]}  Bxh4 {[%clk 0:00:09]} 25. Nxh4 {[%clk 0:00:56]}  f5 {[%clk 0:00:08]} 26. exf5 {[%clk 0:00:53]}  Bxf5 {[%clk 0:00:08]} 27. Bd5 {[%clk 0:00:53]}  Rb8 {[%clk 0:00:03]} 28. Qxd7 {[%clk 0:00:53]}  Qxd5 {[%clk 0:00:03]} 29. Qxd5+ {[%clk 0:00:53]}  Kh8 {[%clk 0:00:03]} 30. Bxc5 {[%clk 0:00:52]}  Bxh3 {[%clk 0:00:00]} 31. Bxf8 {[%clk 0:00:51]} 1-0


[Site "https://www.chess.com"]